bitfinex-derivatives/quotes_SOLF0:USTF0_20251125
["timestamp","ask_amount","ask_price","bid_price","bid_amount"]
[1764082981414,104.6175,133.89,133.8,3.13]
[1764082981415,110.56445507,133.89,133.8,3.13]
[1764082981712,0.0552948,133.86,133.83,0.05490576]
[1764082981906,6.7272,133.85,133.83,0.05490576]
[1764082982516,6.7821948,133.86,133.83,0.05490576]
[1764082982714,0.0552948,133.86,133.83,0.05490576]
[1764082983019,104.6943948,133.86,133.83,0.05490576]
[1764082983209,6.7273,133.85,133.83,0.05490576]
[1764082983405,104.67,133.82,133.75,26.34]
[1764082983611,104.662,133.83,133.75,26.34]
[1764082983920,104.6605,133.83,133.75,3.13]
[1764082984322,0.05209135,133.8,133.78,0.0567087]
[1764082984713,0.05209135,133.8,133.78,3.1867087]
[1764082984917,6.7269,133.86,133.79,3.13]
[1764082985114,110.55625507,133.9,133.79,3.13]
[1764082985517,104.613,133.89,133.79,29.47]
[1764082986016,0.05277551,133.85,133.83,0.04978433]
[1764082986714,6.78007551,133.85,133.83,0.04978433]
[1764082986915,104.6754,133.81,133.72,3.13]
[1764082987221,5.94695507,133.84,133.73,3.13]
[1764082987412,6.7287,133.82,133.73,3.13]
[1764082987719,110.60185507,133.84,133.73,3.13]
[1764082987720,110.59115507,133.85,133.73,3.13]
[1764082988022,0.05648516,133.8,133.78,0.05387536]
[1764082988322,0.05002093,133.8,133.78,0.05387536]
[1764082988707,6.77972093,133.8,133.78,0.05387536]
[1764082989820,0.05002093,133.8,133.78,3.18387536]
[1764082990920,0.05002093,133.8,133.78,0.05387536]
[1764082991221,0.05002093,133.8,133.78,3.18387536]
[1764082992123,0.05002093,133.8,133.78,0.05387536]
[1764082992618,6.77982093,133.8,133.78,0.05387536]
[1764082993324,46.81612464,133.75,133.73,26.34]
[1764082993722,46.81612464,133.75,133.71,5.94695507]
[1764082994116,40.35612464,133.75,133.72,26.34]
[1764082994315,40.40517598,133.75,133.72,0.04823517]
[1764082994921,145.13087598,133.75,133.72,0.04823517]
[1764082995225,6.7326,133.74,133.72,0.04823517]
[1764082996019,6.7328,133.74,133.72,0.04823517]
[1764082996217,40.40517598,133.75,133.72,3.17823517]
[1764082997216,40.40517598,133.75,133.72,0.04823517]
[1764082998226,6.7327,133.74,133.72,0.04823517]
[1764082999019,6.7343,133.71,133.65,64.99]
[1764082999224,145.13037598,133.75,133.65,2.99]
[1764082999225,40.35612464,133.75,133.65,2.99]
[1764082999626,40.35612464,133.75,133.64,104.8053]
[1764082999627,6.7328,133.74,133.67,2.99]
[1764082999824,40.35612464,133.75,133.67,29.33]
[1764083000029,0.04943112,133.72,133.67,26.34]
[1764083000217,0.04943112,133.72,133.68,2.99]
[1764083000732,0.04943112,133.72,133.64,29.33]
[1764083000934,0.05586566,133.69,133.65,2.99]
[1764083001121,0.05586566,133.69,133.65,107.7876]
[1764083001431,40.35612464,133.75,133.67,2.99]
[1764083001631,40.35612464,133.75,133.68,26.34]
[1764083001832,40.35612464,133.75,133.67,2.99]
[1764083001833,145.08162464,133.75,133.67,2.99]
[1764083002029,145.08162464,133.75,133.66,26.34]
[1764083002328,0.05418297,133.72,133.69,0.05316208]
[1764083002532,6.7342,133.71,133.69,0.05316208]
[1764083003020,0.05418297,133.72,133.69,0.05316208]
[1764083003519,0.05418297,133.72,133.69,9.77816208]
[1764083003829,0.05418297,133.72,133.69,3.04316208]
[1764083004236,40.35612464,133.75,133.69,107.80846208]
[1764083004433,104.6762,133.81,133.7,67.39457536]
[1764083004735,6.7307,133.78,133.72,6.7333]
[1764083005119,104.6607,133.83,133.71,104.7534]
[1764083005323,0.04868074,133.78,133.76,0.05191516]
[1764083005523,0.05530414,133.78,133.76,0.05191516]
[1764083006621,0.05530414,133.78,133.76,9.77341516]
[1764083006824,0.05530414,133.78,133.76,0.05191516]
[1764083007428,0.05530414,133.78,133.76,3.04191516]
[1764083008232,0.05530414,133.78,133.76,9.77341516]
[1764083008419,0.05530414,133.78,133.77,2.99]
[1764083008622,0.05530414,133.78,133.76,6.78341516]
[1764083008824,0.05530414,133.78,133.76,0.05191516]
[1764083009237,1.55530414,133.78,133.62,2.99]
[1764083009423,111.5057,133.69,133.62,2.99]
[1764083009724,104.7565,133.71,133.62,2.99]
[1764083009928,6.7346,133.71,133.62,2.99]
[1764083010121,9.34655453,133.73,133.62,2.99]
[1764083010327,0.05717937,133.68,133.65,3.03985422]
[1764083011323,111.4575,133.75,133.65,3.03985422]
[1764083011524,6.7321,133.75,133.66,2.99]
[1764083011721,111.4542,133.75,133.66,2.99]
[1764083012029,6.7321,133.75,133.66,2.99]
[1764083012418,0.05336043,133.72,133.69,3.0416791]
[1764083012624,0.05336043,133.72,133.69,0.0516791]
[1764083014022,104.80186043,133.72,133.69,0.0516791]
[1764083014220,104.7564,133.71,133.69,0.0516791]
[1764083014920,104.7723,133.69,133.6,2.99]
[1764083015127,111.5131,133.68,133.6,2.99]
[1764083015423,104.7855,133.67,133.6,2.99]
[1764083015819,0.05491074,133.65,133.62,0.05110455]
[1764083016432,0.05491074,133.65,133.62,3.04110455]
[1764083017631,0.05491074,133.65,133.62,0.05110455]
[1764083017833,104.85601074,133.65,133.62,0.05110455]
[1764083018026,111.5479,133.64,133.62,0.05110455]
[1764083018426,104.8447,133.6,133.49,2.99]
[1764083018836,104.8281,133.62,133.51,2.99]
[1764083019135,104.8055,133.65,133.51,2.99]
[1764083019334,104.8012,133.65,133.53,107.884]
[1764083019630,104.7814,133.68,133.57,2.99]
[1764083019831,104.7776,133.68,133.58,2.99]
[1764083020639,6.7369,133.66,133.59,2.99]
[1764083020937,0.04783358,133.64,133.62,3.03851838]
[1764083021137,0.05537252,133.64,133.62,3.03851838]
[1764083021330,0.05537252,133.64,133.62,0.04851838]
[1764083021931,111.60197252,133.64,133.62,0.04851838]
[1764083022624,6.79337252,133.64,133.62,0.04851838]
[1764083023634,6.7404,133.59,133.54,2.99]
[1764083024039,104.8433,133.6,133.54,2.99]
[1764083024240,6.7409,133.58,133.54,2.99]
[1764083024735,0.05420123,133.57,133.54,2.99]
[1764083029342,6.79560123,133.57,133.54,2.99]
[1764083029537,6.79560123,133.57,133.52,29.36]
[1764083029734,104.8896,133.54,133.46,1.30288282]
[1764083029940,0.05720684,133.51,133.47,3.0]
[1764083030837,104.8596,133.58,133.47,3.0]
[1764083031044,104.8525,133.59,133.49,3.0]
[1764083031243,104.8409,133.6,133.5,26.38]
[1764083031434,104.8338,133.61,133.52,3.0]
[1764083031957,0.05740259,133.58,133.56,3.0]
[1764083034243,6.79830259,133.58,133.56,3.0]
[1764083034643,0.05740259,133.58,133.56,3.0]
[1764083035740,104.8189,133.63,133.56,3.0]
[1764083036240,104.8249,133.62,133.56,3.0]
[1764083036846,0.05337787,133.6,133.58,3.05367901]
[1764083039555,104.8024,133.65,133.58,3.05367901]
[1764083039944,104.8094,133.64,133.58,3.05367901]
[1764083040144,104.7857,133.67,133.58,3.05367901]
[1764083040343,104.8092,133.64,133.58,3.0]
[1764083040545,0.0482192,133.62,133.6,0.05547402]
[1764083041051,0.0482192,133.62,133.6,3.26547402]
[1764083041241,6.7870192,133.62,133.6,0.05547402]
[1764083041949,6.7411,133.58,133.49,3.21]
[1764083042146,104.8415,133.6,133.52,3.21]
[1764083042341,6.7433,133.53,133.49,3.21]
[1764083042545,104.8792,133.55,133.49,3.21]
[1764083042953,6.7438,133.52,133.51,0.05446747]
[1764083044239,0.05730593,133.53,133.51,0.05446747]
[1764083044240,0.05730593,133.53,133.51,3.26446747]
[1764083044451,104.8561,133.58,133.51,3.26446747]
[1764083044652,104.8793,133.55,133.51,3.26446747]
[1764083045353,6.7433,133.53,133.51,0.05446747]
[1764083045553,0.05541471,133.53,133.51,3.26446747]
[1764083046350,6.79871471,133.53,133.51,3.26446747]
[1764083047055,0.05541471,133.53,133.51,3.26446747]
[1764083047956,0.05541471,133.53,133.51,0.05446747]
[1764083048348,104.9037,133.52,133.46,3.21]
[1764083048559,104.95301471,133.53,133.46,3.21]
[1764083048749,6.7454,133.49,133.46,3.21]
[1764083049149,104.8976,133.53,133.46,3.21]
[1764083049353,104.8838,133.55,133.45,33.1271]
[1764083049354,0.05492985,133.51,133.48,3.25918948]
[1764083049942,0.05492985,133.51,133.49,3.21]
[1764083050652,0.05492985,133.51,133.49,26.38]
[1764083050851,0.05492985,133.51,133.48,3.25918948]
[1764083051048,6.7449,133.5,133.48,3.25918948]
[1764083051445,6.79922985,133.51,133.48,3.25918948]
[1764083051650,0.05492985,133.51,133.48,3.25918948]
[1764083052149,6.7448,133.5,133.48,0.04918948]
[1764083052550,6.7479,133.44,133.38,1.30361491]
[1764083052750,104.9668,133.44,133.39,3.21]
[1764083052955,104.9656,133.44,133.39,3.21]
[1764083053163,104.9745,133.43,133.39,3.21]
[1764083053355,104.9656,133.44,133.39,3.21]
[1764083053761,6.749,133.42,133.4,0.05143862]
[1764083054159,0.04754872,133.43,133.4,0.05143862]
[1764083054759,6.79614872,133.43,133.4,0.05143862]
[1764083055065,0.04754872,133.43,133.4,0.05143862]
[1764083056565,0.04754872,133.43,133.4,3.26143862]
[1764083056760,0.04754872,133.43,133.4,0.05143862]
[1764083057461,6.79604872,133.43,133.4,0.05143862]
[1764083057656,0.04754872,133.43,133.4,0.05143862]
[1764083057966,0.04754872,133.43,133.4,3.06143862]
[1764083058454,0.04754872,133.43,133.4,0.05143862]
[1764083059057,0.04754872,133.43,133.4,3.10143862]
[1764083059669,0.04754872,133.43,133.4,0.05143862]
[1764083060061,6.79594872,133.43,133.4,0.05143862]
[1764083060671,0.04754872,133.43,133.4,3.10143862]
[1764083061269,0.04754872,133.43,133.4,0.05143862]
[1764083061570,0.04754872,133.43,133.4,3.10143862]
[1764083061961,0.04754872,133.43,133.41,3.05]
[1764083062370,0.04754872,133.43,133.4,26.43143862]
[1764083062569,0.04754872,133.43,133.4,0.05143862]
[1764083063355,0.04754872,133.43,133.4,3.10143862]
[1764083063562,0.04754872,133.43,133.41,6.7491]
[1764083063765,0.04754872,133.43,133.4,0.05143862]
[1764083064064,0.04754872,133.43,133.4,3.10143862]
[1764083064269,0.04754872,133.43,133.4,0.05143862]
[1764083064571,0.04754872,133.43,133.4,3.10143862]
[1764083065166,110.91169147,133.5,133.4,3.10143862]
[1764083065466,6.7463,133.47,133.41,9.7991]
[1764083065666,104.9303,133.49,133.41,3.05]
[1764083065862,104.9353,133.48,133.41,3.05]
[1764083066072,104.9457,133.47,133.39,26.4]
[1764083066370,0.05095002,133.44,133.42,0.05685439]
[1764083066574,6.79885002,133.44,133.42,0.05685439]
[1764083067172,0.05095002,133.44,133.42,3.10685439]
[1764083067370,5.99049147,133.53,133.42,3.10685439]
[1764083067570,6.7458,133.48,133.43,26.4]
[1764083067769,104.9207,133.5,133.43,29.45]
[1764083068171,5.99049147,133.54,133.44,3.05]
[1764083068468,104.8734,133.56,133.48,0.05313225]
[1764083068469,0.05546729,133.5,133.48,0.05313225]
[1764083068770,131.2666,133.57,133.48,3.10313225]
[1764083068973,110.85299147,133.58,133.48,3.05]
[1764083069275,1.88537,133.59,133.52,107.9496]
[1764083069476,5.99049147,133.68,133.57,3.05]
[1764083069685,5.99049147,133.7,133.6,3.05]
[1764083069981,0.0528741,133.64,133.61,3.102611]
[1764083070177,32.39049147,133.73,133.62,9.7881]
[1764083070371,110.75189147,133.7,133.62,3.05]
[1764083070564,104.7511,133.72,133.57,5.99049147]
[1764083070565,104.7567,133.71,133.6,26.38]
[1764083070766,6.7354,133.69,133.6,29.43]
[1764083070973,131.1387,133.73,133.61,3.05]
[1764083071167,0.05564078,133.68,133.66,0.05752521]
[1764083071369,0.05466875,133.68,133.66,3.10752521]
[1764083071570,0.05466875,133.68,133.66,0.05752521]
[1764083073583,0.05466875,133.68,133.63,3.05]
[1764083073884,104.83196875,133.68,133.61,26.38]
[1764083074081,104.7773,133.68,133.61,26.38]
[1764083074380,0.04724853,133.66,133.63,0.05097384]
[1764083074772,6.78424853,133.66,133.63,0.05097384]
[1764083075084,104.8177,133.63,133.52,110.88769147]
[1764083075380,6.7402,133.59,133.53,26.38]
[1764083075581,104.846,133.6,133.51,3.05]
[1764083075773,104.8505,133.59,133.52,26.38]
[1764083075975,6.7415,133.57,133.52,29.43]
[1764083076270,0.05567364,133.57,133.54,3.09994693]
[1764083076976,104.8192,133.63,133.54,3.09994693]
[1764083077271,6.7391,133.62,133.54,3.05]
[1764083077470,104.8127,133.64,133.54,3.05]
[1764083077879,0.05272035,133.6,133.58,3.09734405]
[1764083078273,0.05272035,133.6,133.59,3.05]
[1764083078469,110.74869147,133.71,133.6,3.05]
[1764083078681,104.7699,133.69,133.61,3.05]
[1764083078883,104.7865,133.67,133.61,3.05]
[1764083079181,104.7784,133.68,133.61,3.05]
[1764083079182,6.7369,133.66,133.61,3.05]
[1764083079389,0.05614015,133.65,133.62,0.04985974]
[1764083079687,104.85754015,133.65,133.62,0.04985974]
[1764083079874,104.8085,133.64,133.62,0.04985974]
[1764083080580,6.739,133.62,133.57,3.05]
[1764083080783,104.828,133.62,133.54,29.41]
[1764083080973,6.7399,133.6,133.54,29.41]
[1764083081378,0.05521864,133.58,133.56,3.09971299]
[1764083081578,0.05521864,133.58,133.56,0.04971299]
[1764083082078,0.05521864,133.58,133.56,3.09971299]
[1764083084784,0.05521864,133.58,133.56,0.04971299]
[1764083085283,0.05521864,133.58,133.56,3.09971299]
[1764083087899,6.7373,133.65,133.56,3.09971299]
[1764083088198,104.801,133.65,133.56,3.05]
[1764083088491,6.7389,133.62,133.56,3.05]
[1764083088692,104.7956,133.66,133.56,3.05]
[1764083088990,0.05497586,133.62,133.6,0.05719389]
[1764083091796,6.79397586,133.62,133.6,0.05719389]
[1764083098905,0.05497586,133.62,133.6,0.05719389]
[1764083099502,6.79367586,133.62,133.6,0.05719389]
[1764083100500,0.05497586,133.62,133.6,0.05719389]
[1764083100908,6.7406,133.59,133.54,3.22]
[1764083101298,6.7419,133.56,133.54,3.22]
[1764083101601,104.829,133.62,133.44,104.9596]
[1764083101602,104.829,133.62,133.51,3.22]
[1764083101803,0.05637098,133.58,133.55,3.27291386]
[1764083102004,0.05024542,133.58,133.55,3.2683993]
[1764083102408,0.05024542,133.58,133.57,3.22]
[1764083102607,0.05024542,133.58,133.56,6.7416]
[1764083102608,0.05024542,133.58,133.55,3.2683993]
[1764083102907,0.05024542,133.58,133.56,3.22]
[1764083103203,0.05024542,133.58,133.57,3.22]
[1764083103914,0.05024542,133.58,133.55,0.0483993]
[1764083104112,104.90914542,133.58,133.55,0.0483993]
[1764083104509,6.7412,133.57,133.55,0.0483993]
[1764083104806,0.05024542,133.58,133.55,0.0483993]
[1764083104807,104.90894542,133.58,133.55,0.0483993]
[1764083105009,6.7412,133.57,133.55,0.0483993]
[1764083105211,104.8851,133.55,133.48,91.58]
[1764083105409,110.86309147,133.56,133.48,29.58]
[1764083105603,104.8689,133.57,133.49,3.22]
[1764083105803,104.8797,133.55,133.49,3.22]
[1764083106309,0.05004732,133.53,133.51,0.05377604]
[1764083107221,0.05004732,133.53,133.51,3.27377604]
[1764083107508,0.05004732,133.53,133.51,0.05377604]
[1764083107707,0.05004732,133.53,133.51,3.27377604]
[1764083108013,0.05004732,133.53,133.51,0.05377604]
[1764083108509,0.05004732,133.53,133.51,3.27377604]
[1764083108712,104.8432,133.6,133.51,3.27377604]
[1764083108913,104.8432,133.6,133.51,3.22]
[1764083109110,104.8562,133.58,133.47,110.92659147]
[1764083109408,104.8562,133.58,133.49,3.22]
[1764083109708,0.04852834,133.55,133.52,0.05498008]
[1764083109912,0.04852834,133.55,133.52,3.27498008]
[1764083110111,6.7386,133.63,133.54,3.22]
[1764083110412,110.80219147,133.64,133.54,3.22]
[1764083110604,6.7394,133.61,133.54,3.22]
[1764083110804,104.8269,133.62,133.51,9.964]
[1764083111107,6.79383757,133.58,133.55,0.0569003]
[1764083111716,0.05293757,133.58,133.55,0.0569003]
[1764083112915,6.79383757,133.58,133.55,0.0569003]
[1764083113309,0.05293757,133.58,133.55,0.0569003]
[1764083114722,0.05293757,133.58,133.55,3.2769003]
[1764083115519,0.05293757,133.58,133.55,0.0569003]
[1764083116114,6.79383757,133.58,133.55,0.0569003]
[1764083116319,0.05293757,133.58,133.55,3.2769003]
[1764083116625,0.05293757,133.58,133.55,0.0569003]
[1764083117119,0.05293757,133.58,133.55,3.2769003]
[1764083117921,0.05293757,133.58,133.55,3.0369003]
[1764083119119,6.79383757,133.58,133.55,0.0569003]
[1764083119914,6.7414,133.57,133.55,0.0569003]
[1764083120415,0.05293757,133.58,133.55,3.0369003]
[1764083120818,104.777,133.68,133.59,2.98]
[1764083121014,104.7579,133.71,133.61,107.8072]
[1764083121015,5.99049147,133.71,133.61,107.8072]
[1764083121209,5.99049147,133.71,133.6,104.8366]
[1764083121210,5.99049147,133.71,133.62,2.98]
[1764083121416,110.72469147,133.74,133.63,6.738]
[1764083121616,104.7342,133.74,133.63,2.98]
[1764083121913,104.81812934,133.7,133.67,0.05574984]
[1764083122116,104.7856,133.67,133.6,2.98]
[1764083122718,104.7963,133.66,133.57,2.98]
[1764083123019,0.05085827,133.63,133.6,0.05734893]
[1764083123322,0.05085827,133.63,133.6,0.04919857]
[1764083123323,0.0565111,133.63,133.6,0.04919857]
[1764083123625,6.7388,133.62,133.6,0.04919857]
[1764083128029,6.741,133.58,133.56,2.98]
[1764083128628,104.8195,133.63,133.56,2.98]
[1764083128829,6.7398,133.6,133.56,2.98]
[1764083129026,0.05025302,133.59,133.56,2.98]
[1764083129332,0.05025302,133.59,133.57,3.02897381]
[1764083129631,0.05025302,133.59,133.57,65.02897381]
[1764083129823,104.8009,133.65,133.58,2.98]
[1764083130225,104.7955,133.66,133.58,2.98]
[1764083130427,9.03009395,133.77,133.58,104.8518]
[1764083130627,104.7425,133.73,133.62,2.98]
[1764083130829,0.0571344,133.69,133.66,0.05112487]
[1764083131531,0.0571344,133.69,133.66,3.03112487]
[1764083132427,104.6776,133.81,133.69,2.98]
[1764083132630,104.7151,133.76,133.69,2.98]
[1764083133030,6.7323,133.75,133.69,2.98]
[1764083133217,0.05745413,133.73,133.71,0.05097776]
[1764083133624,0.05745413,133.73,133.71,3.03097776]
[1764083134434,0.05745413,133.73,133.71,0.05097776]
[1764083134826,104.79645413,133.73,133.71,0.05097776]
[1764083135022,111.52885413,133.73,133.71,0.05097776]
[1764083135333,104.7693,133.69,133.65,2.98]
[1764083135528,104.7539,133.71,133.65,2.98]
[1764083135735,104.7632,133.7,133.65,2.98]
[1764083136226,0.05331063,133.69,133.66,3.02878953]
[1764083136636,104.7772,133.68,133.66,0.04878953]
[1764083137040,6.7358,133.68,133.66,0.04878953]
[1764083138826,0.05331063,133.69,133.66,3.02878953]
[1764083139032,104.7106,133.77,133.66,3.02878953]
[1764083139234,104.7143,133.76,133.66,2.98]
[1764083139631,104.7143,133.76,133.67,62.0]
[1764083139833,104.6958,133.79,133.68,2.98]
[1764083140025,104.6958,133.79,133.67,166.7809]
[1764083140026,104.7065,133.77,133.72,0.04833009]
[1764083140226,0.05559764,133.75,133.72,0.04833009]
[1764083140431,104.78209764,133.75,133.72,0.04833009]
[1764083141136,6.7328,133.74,133.72,3.02833009]
[1764083141337,0.05559764,133.75,133.72,3.02833009]
[1764083142429,104.78209764,133.75,133.72,0.04833009]
[1764083142634,104.7475,133.72,133.67,2.98]
[1764083142940,6.7344,133.71,133.67,2.98]
[1764083143133,104.7462,133.72,133.67,2.98]
[1764083143434,104.7325,133.74,133.67,2.98]
[1764083143435,104.7384,133.73,133.67,2.98]
[1764083143629,0.0512103,133.71,133.69,3.0324968]
[1764083143826,0.05237141,133.71,133.69,3.0324968]
[1764083144343,0.05237141,133.71,133.69,0.0524968]
[1764083144739,0.05237141,133.71,133.69,3.0324968]
[1764083144941,104.7179,133.76,133.69,3.0324968]
[1764083144942,104.7065,133.77,133.69,3.0324968]
[1764083145135,104.7222,133.75,133.69,29.3]
[1764083145444,104.7309,133.74,133.69,2.98]
[1764083145945,0.05061232,133.73,133.7,0.05132835]
[1764083146736,6.7338,133.72,133.7,0.05132835]
[1764083147938,0.05061232,133.73,133.7,0.05132835]
[1764083148332,0.05061232,133.73,133.7,3.11132835]
[1764083149235,0.05061232,133.73,133.7,9.84572835]
[1764083149436,0.05061232,133.73,133.71,3.06]
[1764083149939,6.7309,133.78,133.72,3.06]
[1764083150139,104.6704,133.82,133.74,3.06]
[1764083150345,104.6678,133.82,133.74,3.06]
[1764083150642,104.6875,133.81,133.74,3.06]
[1764083150831,0.04758976,133.79,133.76,0.05468821]
[1764083151031,6.77848976,133.79,133.76,3.11468821]
[1764083151443,0.04758976,133.79,133.76,3.11468821]
[1764083151638,0.04758976,133.79,133.77,3.06]
[1764083152746,104.6516,133.86,133.77,3.06]
[1764083152747,104.6337,133.88,133.79,3.06]
[1764083152936,104.6337,133.88,133.8,29.36]
[1764083153237,104.6482,133.86,133.76,3.06]
[1764083153544,104.6784,133.82,133.77,3.06]
[1764083153845,0.05389042,133.81,133.78,0.05572444]
[1764083154232,6.7304,133.8,133.78,0.05572444]
[1764083156340,0.05389042,133.81,133.78,3.11572444]
[1764083156541,0.05389042,133.81,133.78,0.05572444]
[1764083157440,6.7304,133.8,133.78,0.05572444]
[1764083159443,0.05389042,133.81,133.78,0.05572444]
[1764083159749,0.05389042,133.81,133.78,3.09572444]
[1764083160140,6.78379042,133.81,133.78,3.09572444]
[1764083160337,0.05389042,133.81,133.78,0.05572444]
[1764083160538,104.74319042,133.81,133.78,0.05572444]
[1764083160743,6.7304,133.8,133.78,0.05572444]
[1764083160945,104.7174,133.77,133.71,29.34]
[1764083161344,6.7334,133.74,133.71,29.34]
[1764083161846,6.7346,133.72,133.71,0.04791095]
[1764083162343,104.7592,133.72,133.65,3.04]
[1764083163142,104.7171,133.77,133.65,3.04]
[1764083163337,0.05374561,133.72,133.7,0.05372857]
[1764083163633,0.05498062,133.72,133.7,0.05372857]
[1764083163837,6.78938062,133.72,133.7,0.05372857]
[1764083164742,104.7765,133.7,133.63,3.04]
[1764083165246,6.7365,133.68,133.63,3.04]
[1764083165451,104.7721,133.7,133.63,3.04]
[1764083165751,0.05646956,133.68,133.65,0.05128881]
[1764083165935,0.05646956,133.68,133.65,3.09128881]
[1764083166444,6.737,133.67,133.65,0.05128881]
[1764083166642,0.05646956,133.68,133.65,0.05128881]
[1764083166842,0.05646956,133.68,133.65,3.09128881]
[1764083167741,0.05646956,133.68,133.65,29.39128881]
[1764083168137,0.05646956,133.68,133.65,0.05128881]
[1764083168341,0.05646956,133.68,133.65,3.09128881]
[1764083168948,0.05646956,133.68,133.65,0.05128881]
[1764083169450,0.05646956,133.68,133.65,3.09128881]
[1764083169840,0.05646956,133.68,133.65,0.05128881]
[1764083170153,0.05646956,133.68,133.65,3.09128881]
[1764083170542,0.05646956,133.68,133.66,3.04]
[1764083170738,0.05646956,133.68,133.66,65.04]
[1764083170941,0.05646956,133.68,133.67,3.04]
[1764083171143,0.05646956,133.68,133.66,62.0]
[1764083171354,0.05646956,133.68,133.66,91.34]
[1764083171556,0.05646956,133.68,133.67,3.04]
[1764083172350,114.08273852,133.77,133.67,3.04]
[1764083172540,114.08273852,133.77,133.68,3.04]
[1764083172740,104.725,133.76,133.68,3.04]
[1764083172947,9.36193852,133.77,133.68,3.04]
[1764083173358,0.05027675,133.74,133.71,3.09463094]
[1764083174053,0.05027675,133.74,133.72,3.04]
[1764083174553,114.05853852,133.8,133.72,3.04]
[1764083174847,114.01323852,133.86,133.74,3.04]
[1764083175053,104.6632,133.84,133.75,29.34]
[1764083175452,0.05535181,133.81,133.78,3.09190532]
[1764083176851,104.6341,133.88,133.78,3.09190532]
[1764083176852,104.6179,133.9,133.79,3.04]
[1764083177058,104.6233,133.89,133.79,3.04]
[1764083177357,6.7279,133.85,133.8,29.28]
[1764083177655,6.7294,133.82,133.76,9.712]
[1764083177845,0.05520092,133.8,133.78,3.03120821]
[1764083178655,0.05520092,133.8,133.78,0.05120821]
[1764083178856,0.05520092,133.8,133.78,3.03120821]
[1764083179060,104.6468,133.86,133.78,3.03120821]
[1764083179245,104.6629,133.84,133.78,2.98]
[1764083179450,6.729,133.83,133.79,26.28]
[1764083179652,104.6003,133.92,133.8,2.98]
[1764083179848,104.6074,133.91,133.8,2.98]
[1764083180159,104.6074,133.91,133.84,0.04863427]
[1764083180160,0.05412228,133.87,133.84,0.04863427]
[1764083181257,6.7274,133.86,133.84,0.04863427]
[1764083181467,0.05412228,133.87,133.84,0.04863427]
[1764083181868,0.05412228,133.87,133.84,3.02863427]
[1764083183665,0.05412228,133.87,133.84,0.04863427]
[1764083185264,6.7274,133.86,133.84,0.04863427]
[1764083186364,8.2274,133.86,133.84,0.04863427]
[1764083186563,6.7292,133.82,133.77,29.26]
[1764083186967,6.73,133.81,133.78,2.98]
[1764083187362,110.60331759,133.86,133.78,2.98]
[1764083187570,0.04788999,133.83,133.81,0.05191762]
[1764083187871,6.77678999,133.83,133.81,0.05191762]
[1764083188569,6.77678999,133.83,133.75,84.36933278]
[1764083188570,104.6872,133.81,133.75,64.98]
[1764083188766,110.63021759,133.83,133.75,2.98]
[1764083189165,6.7305,133.8,133.75,2.98]
[1764083189568,0.04938616,133.79,133.76,3.03358718]
[1764083190980,0.04938616,133.79,133.76,0.05358718]
[1764083191879,6.7315,133.78,133.76,0.05358718]
[1764083192376,6.7333,133.74,133.73,62.0]
[1764083192580,104.7406,133.74,133.68,26.28]
[1764083193178,6.735,133.71,133.67,2.98]
[1764083193374,104.7406,133.74,133.67,2.98]
[1764083193577,0.05392673,133.7,133.68,3.03458975]
[1764083193872,0.05387043,133.7,133.68,3.02781401]
[1764083195378,0.05387043,133.7,133.68,0.04781401]
[1764083195780,6.78947043,133.7,133.68,0.04781401]
[1764083196686,104.7869,133.69,133.62,92.6]
[1764083196986,104.7869,133.69,133.62,118.88]
[1764083197289,104.7666,133.71,133.63,2.98]
[1764083197481,104.7643,133.71,133.63,2.98]
[1764083197789,0.05252565,133.68,133.66,0.05538014]
[1764083198982,0.05252565,133.68,133.6,55.65039003]
[1764083198983,104.84652565,133.68,133.6,55.65039003]
[1764083199182,104.794,133.68,133.6,55.65039003]
[1764083199387,6.7379,133.65,133.61,2.98]
[1764083199593,6.7379,133.65,133.6,26.28]
[1764083199788,104.8133,133.65,133.6,26.28]
[1764083199989,6.739,133.63,133.61,0.05543286]
[1764083200384,0.05122817,133.64,133.61,0.05543286]